Cogmind - Beta 13 @@@ ROGUE MODE // 2024.04.04 @ 20:55:06 Player: nowtakenusername Result: Destroyed by Y-45 Defender with Heavy Assault Rifle Performance ------------- Evolutions (1) 500 Regions Visited (3) 600 Robots Destroyed (70) 350 Value Destroyed (1873) 1873 Prototype IDs (6) 120 Alien Tech Used (0) 0 Bonus (0) 0 TOTAL SCORE: 3443 Bonus ------- None Cogmind --------- Core Integrity 0/400 Matter 300/300 Energy 100/100 System Corruption 2% Temperature Cool (9) Movement Treading (160) Location -9/Storage Parts ------- > --- POWER (1) -------- (None) > --- PROPULSION (3) --- Light Treads Improved Treads > --- UTILITY (3) ------ Medium Storage Unit Signal Interpreter Hardened Light Armor Plating > --- WEAPON (2) ------- Spread Laser > --- INVENTORY (10) --- Improved Ion Engine Weight Redist. System Launcher Guidance Computer Medium Armor Plating Drone Bay (2/2) Drone Bay (2/2) Drone Bay (2/2) Drone Bay (2/2) Spread Laser Grenade Launcher Peak State ------------ > --- POWER ------------ Improved Ion Engine > --- PROPULSION ------- Improved Treads Improved Treads Improved Flight Unit > --- UTILITY ---------- Medium Storage Unit Signal Interpreter Hardened Light Armor Plating > --- WEAPON ----------- Spread Laser Improved Assault Rifle > --- INVENTORY -------- Improved Ion Engine Weight Redist. System Launcher Guidance Computer Medium Armor Plating Drone Bay Drone Bay Drone Bay Drone Bay Spread Laser Grenade Launcher [Rating: 21] Favorites ----------- Power Improved Ion Engine Engine Improved Ion Engine Propulsion Light Treads Treads Light Treads Leg Aluminum Leg Wheel Compact Wheel Hover Unit Hover Unit Flight Unit Improved Flight Unit Utility Signal Interpreter Device Seismic Detector Storage Medium Storage Unit Processor Signal Interpreter Protection Hardened Light Armor Plating Weapon Spread Laser Energy Gun Spread Laser Energy Cannon Advanced Beam Cannon Ballistic Gun Light Assault Rifle Launcher Grenade Launcher Build | -11 -10 -9 -9 ------- Run | Yrd Mat Mat Sto Slots Evolved 2 | . . 2 . Power . | . . . . Propulsion 1 | . . 1 . Utility 1 | . . 1 . Weapon . | . . . . Parts Attached 72 | 9 20 21 22 Power 9 | 2 1 4 2 Engine 9 | 2 1 4 2 Core . | . . . . Reactor . | . . . . Propulsion 23 | 3 8 6 6 Treads 12 | 1 1 5 5 Leg 6 | 2 3 1 . Wheel 1 | . 1 . . Hover 3 | . 3 . . Flight 1 | . . . 1 Utility 15 | 1 2 6 6 Device 3 | . 1 1 1 Storage 4 | 1 . 1 2 Processor 1 | . 1 . . Hackware . | . . . . Protection 7 | . . 4 3 Artifact . | . . . . Weapon 25 | 3 9 5 8 Energy Gun 12 | . 4 5 3 Energy Cannon 3 | . 1 . 2 Ballistic Gun 6 | 3 2 . 1 Ballistic Cannon . | . . . . Launcher 4 | . 2 . 2 Special Weapon . | . . . . Impact Weapon . | . . . . Slashing Weapon . | . . . . Piercing Weapon . | . . . . Special Melee Weapon . | . . . . Unidentified Prototypes 4 | . 1 . 3 Parts Lost 12 | 4 3 2 3 Power 2 | 1 . . 1 Propulsion 4 | 1 2 . 1 Utility 1 | . . 1 . Weapon 5 | 2 1 1 1 Highest Loss Streak 4 | 4 3 1 2 To Critical Strikes . | . . . . Average Slot Usage (%) 96 | . 89 98 99 Engine 11 | . 13 11 10 Treads 23 | . 2 27 32 Leg 4 | . 11 5 . Device 2 | . 8 . 1 Storage 11 | . 14 11 11 Processor 9 | . 2 11 11 Protection 7 | . . 10 9 Energy Gun 15 | . 6 20 15 Energy Cannon 3 | . 5 . 5 Ballistic Gun 3 | . 12 1 . Naked Turns . | . . . . Heaviest Build 30 | 12 17 30 30 Greatest Support 66 | 20 20 60 66 Greatest Overweight (x) 4 | 1 4 2 . Average Overweight (x) . | . . . . Largest Inventory Capacity 10 | 8 8 10 10 Average Capacity 8 | 5 8 9 10 Most Carried 10 | 8 8 10 10 Average Carried 6 | 1 7 9 9 Final Capacity 10 | 8 8 10 10 Final Carried 10 | 7 8 10 10 Class Distribution -------------------- 71% | Mutant 28% | Scavenger-Mutant Dominant Class ---------------- Mutant | -10/Materials Scavenger-Mutant | -9/Materials Mutant | -9/Storage Resources | -11 -10 -9 -9 ----------- Run | Yrd Mat Mat Sto Matter Collected 997 | 286 247 224 240 Remotely . | . . . . Salvage Created 2451 | 36 395 965 1055 Parts 153 | 2 22 66 63 Haulers Intercepted 8 | . 1 1 6 Recyclers Shooed 8 | . . 1 7 Parts Field Recycled . | . . . . Retrieved Matter . | . . . . Parts Self-Destructed . | . . . . Prevented . | . . . . Kills | -11 -10 -9 -9 ------- Run | Yrd Mat Mat Sto Combat Hostiles Destroyed 46 | 1 5 21 19 Melee 1 | . . 1 . Guns 39 | 1 3 20 15 Cannons 6 | . 2 . 4 Classes Destroyed 11 | 1 6 3 1 Builder 1 | . 1 . . Hauler 8 | . 1 1 6 Recycler 4 | . 2 1 1 Operator 2 | . . 2 . Watcher 9 | . 2 5 2 Swarmer 6 | . 1 3 2 Grunt 25 | . 4 13 8 Brawler 1 | . . . 1 Duelist 1 | . . 1 . Sentry 12 | . . 4 8 Demolisher 1 | 1 . . . Best Kill Streak 6 | 1 3 6 2 Combat Bots Only 6 | 1 1 6 2 Max Kills in Single Turn 2 | 1 1 1 2 Gunslinging 1 | . . . 1 Exploded . | . . . . Melee 1 | . . 1 . Uniques/NPCs Destroyed . | . . . . Combat | -11 -10 -9 -9 -------- Run | Yrd Mat Mat Sto Hostile Shots Fired 308 | 13 73 99 123 Missed 72 | . 22 15 35 Damage Taken 3437 | 499 534 1144 1260 Core 656 | 91 151 253 161 Absorbed by Shields . | . . . . Core Remaining (%) 33 | 63 3 . . Volleys Fired 209 | 13 46 79 71 Largest 2 | 2 2 2 2 Hottest 133 | 40 85 121 133 Shots Fired 342 | 16 65 126 135 Gun 285 | 16 47 126 96 Cannon 52 | . 15 . 37 Launcher 5 | . 3 . 2 Special . | . . . . Kinetic 53 | 16 33 4 . Thermal 284 | . 29 122 133 Explosive 5 | . 3 . 2 Electromagnetic . | . . . . Robot Hit Streak 20 | 7 10 10 20 Robot Miss Streak 7 | 5 3 7 5 Penetration Max . | . . . . Secondary Targets 1 | . . . 1 Max Gunslinging Chain 1 | . . . 1 Shots Hit Robots 236 | 8 41 89 98 Core Hits 198 | 3 20 82 93 Critical Kills . | . . . . Critical Parts Destroyed . | . . . . Critical Strikes 5 | . . 5 . Burn 5 | . . 5 . Melee Attacks . | . . . . Impact . | . . . . Slashing . | . . . . Piercing . | . . . . Sneak Attacks . | . . . . Combat Hostiles . | . . . . Follow-up Attacks . | . . . . Damage Inflicted 3471 | 68 616 1200 1587 Guns 2667 | 68 316 1192 1091 Cannons 635 | . 141 . 494 Explosions 159 | . 159 . . Melee . | . . . . Ramming 10 | . . 8 2 Kinetic 272 | 68 185 19 . Thermal 3030 | . 272 1173 1585 Explosive 159 | . 159 . . Electromagnetic . | . . . . Impact . | . . . . Slashing . | . . . . Piercing . | . . . . Highest Corruption 5 | . 5 . 2 Average Corruption 4 | . 5 . 1 Corruption Purged . | . . . . Corruption Blocked . | . . . . Effects 18 | . 15 . 3 Message Errors 2 | . 1 . 1 Matter Fused 3 | . 2 . 1 Heat Flow Errors 2 | . 2 . . Energy Discharges 5 | . 4 . 1 Parts Fused 2 | . 2 . . Data Loss (minor) 1 | . 1 . . Data Loss (major) 1 | . 1 . . Misfires 1 | . 1 . . Alerts 1 | . 1 . . Overload Shots . | . . . . Overflow Damage 51 | . 45 . 6 Projectiles 6 | . . . 6 Explosions 45 | . 45 . . Melee . | . . . . Knockbacks . | . . . . Impact . | . . . . Kinetic . | . . . . Secondary . | . . . . Self-Inflicted Damage 30 | . 30 . . Shots 1 | . 1 . . Rammed 4 | . . 3 1 Targets Rammed 5 | . . 4 1 Kicked . | . . . . Crushed 1 | . . 1 . Highest Temperature 584 | . 357 584 423 Average Temperature 131 | . 117 142 125 Received Heat Transfer 903 | . 114 357 432 Effects 25 | . 2 11 12 Shutdowns 3 | . . 2 1 Energy Bleed 11 | . 1 3 7 Interference 6 | . 1 1 4 Damage (major) 3 | . . 3 . Damage (core) 2 | . . 2 . Siege Activations . | . . . . Robots Corrupted . | . . . . Combat Hostiles . | . . . . Parts Fried . | . . . . Impact Corruptions . | . . . . Robots Melted . | . . . . Combat Hostiles . | . . . . Parts Melted 11 | . 1 8 2 Heat Transferred 5882 | . 593 2649 2640 Parts Sabotaged . | . . . . Parts Stolen . | . . . . Parts Stripped . | . . . . Power Chain Reactions . | . . . . Alert | -11 -10 -9 -9 ------- Run | Yrd Mat Mat Sto Peak Influence 370 | 20 134 370 341 Initial 152 | . 13 11 152 Average 120 | 2 45 185 216 Maximum Alert Level 1 | . . 1 1 Low Security (%) 68 | 100 100 47 38 Level 1 31 | . . 52 61 Level 2 . | . . . . Level 3 . | . . . . Level 4 . | . . . . Level 5 . | . . . . High Security . | . . . . Max Security . | . . . . Squads Dispatched 6 | . . 4 2 Investigation 2 | . . 2 . Extermination . | . . . . Reinforcement 2 | . . 2 . Assault . | . . . . Garrison 2 | . . . 2 Intercept . | . . . . Searches Triggered . | . . . . Construction Impeded . | . . . . Haulers Reinforced . | . . . . Active Scanning Responses . | . . . . Cargo Convoy Interrupts . | . . . . Stealth | -11 -10 -9 -9 --------- Run | Yrd Mat Mat Sto Distress Signals 6 | . 1 1 4 Communications Jammed . | . . . . Distress Signals . | . . . . Times Spotted 76 | 2 12 34 28 Peak Tracking Total 9 | 2 4 9 3 Tactical Retreats 5 | . 1 2 2 Traps | -11 -10 -9 -9 ------- Run | Yrd Mat Mat Sto Traps Triggered 6 | . 2 2 2 Indirectly . | . . . . Trap Hack Attempts . | . . . . Triggered . | . . . . Disarmed . | . . . . Reprogrammed . | . . . . Reused . | . . . . Traps Extracted . | . . . . Installed . | . . . . Triggered . | . . . . Machines | -11 -10 -9 -9 ---------- Run | Yrd Mat Mat Sto Machines Disabled 4 | . 1 . 3 Max in Single Turn 1 | . 1 . 1 Machines Repaired . | . . . . Machines Dismantled . | . . . . Machines Sabotaged . | . . . . Overloaded Fab Kills . | . . . . Hacking | -11 -10 -9 -9 --------- Run | Yrd Mat Mat Sto Machines Accessed 10 | . 4 2 4 Terminals 9 | . 3 2 4 Fabricators . | . . . . Repair Stations . | . . . . Recycling Units 1 | . 1 . . Scanalyzers . | . . . . Garrison Access . | . . . . Total Hacks 24 | . 5 9 10 Successful 9 | . 2 5 2 Failed 15 | . 3 4 8 Catastrophic 1 | . . . 1 Database Lockouts . | . . . . Manual 13 | . 3 7 3 Terminals 23 | . 4 9 10 Fabricators . | . . . . Repair Stations . | . . . . Recycling Units 1 | . 1 . . Scanalyzers . | . . . . Garrison Access . | . . . . Terminal Hacks 8 | . 1 5 2 Part Schematic 2 | . . 2 . Prototype ID Bank 1 | . . 1 . Open Door 1 | . . . 1 Branch Access Points 1 | . 1 . . Locate Traps 1 | . . . 1 Transport Status 1 | . . 1 . Zone Layout 1 | . . 1 . Fabricator Hacks . | . . . . Repair Station Hacks . | . . . . Recycling Unit Hacks 1 | . 1 . . Report Inventory 1 | . 1 . . Scanalyzer . | . . . . Garrison Access Hacks . | . . . . Unauthorized Hacks . | . . . . Terminals . | . . . . Fabricators . | . . . . Repair Stations . | . . . . Recycling Units . | . . . . Scanalyzers . | . . . . Garrison Access . | . . . . Data Cores Recovered 1 | . . 1 . Used . | . . . . Hacking Detections 9 | . 3 2 4 Full Trace Events 1 | . . 1 . Feedback Events . | . . . . Feedback Blocked . | . . . . Robot Schematics Acquired . | . . . . Robots Built . | . . . . Authchips . | . . . . Time . | . . . . Total Robot Build Rating . | . . . . Part Schematics Acquired 2 | . . 2 . Parts Built . | . . . . Authchips . | . . . . Time . | . . . . Total Part Build Rating . | . . . . Parts Repaired . | . . . . Time . | . . . . Parts Recycled . | . . . . Recycled Matter . | . . . . Retrieved Matter . | . . . . Retrieved Components . | . . . . Parts Scanalyzed . | . . . . Part Schematics Acquired . | . . . . Parts Damaged . | . . . . Bothacking | -11 -10 -9 -9 ------------ Run | Yrd Mat Mat Sto Used RIF Installer . | . . . . Robots Hacked . | . . . . Non-combat . | . . . . Combat . | . . . . Robot Hacks Applied . | . . . . Relay Couplers Released . | . . . . Fabnet Peak Effective % . | . . . . Robots Rewired . | . . . . Allies Hacked . | . . . . Hacks Repelled . | . . . . Allies | -11 -10 -9 -9 -------- Run | Yrd Mat Mat Sto Total Allies . | . . . . Largest Group . | . . . . Highest-Rated Group . | . . . . Highest-Rated Ally . | . . . . Total Orders 1 | . . . 1 EXPLORE 1 | . . . 1 Ally Attacks . | . . . . Total Damage . | . . . . Kills . | . . . . Allies Corrupted . | . . . . Allies Melted . | . . . . Intel | -11 -10 -9 -9 ------- Run | Yrd Mat Mat Sto Robot Analysis Total . | . . . . Derelict Logs Recovered . | . . . . Drone Launches 6 | . . . 6 Drone Recoveries . | . . . . Exploration | -11 -10 -9 -9 ------------- Run | Yrd Mat Mat Sto Turns Passed 5661 | 1573 955 1437 1696 Spaces Moved 2155 | 173 572 709 701 Core 40 | 6 34 . . Treads 1578 | 115 74 688 701 Legs 324 | 52 251 21 . Wheels 142 | . 142 . . Hover 71 | . 71 . . Flight . | . . . . Fastest Speed 50 | 50 100 160 160 Average Speed 152 | 144 133 162 160 Slowest Speed 260 | 160 250 260 160 Overloaded Moves . | . . . . Propulsion Burnouts . | . . . . Robots Hopped . | . . . . Cave-ins Triggered . | . . . . Exploration Rate (%) 44 | 19 61 35 63 Regions Visited 3 Branch Regions 1 Pre-discovered Areas . | . . . . Known Exits Taken 2 | . 1 1 . Unknown Exits Taken 1 | 1 . . . Scrap Searched . | . . . . Spaces Dug . | . . . . Terrain Destroyed 39 | . 25 . 14 Melee . | . . . . Projectile . | . . . . AOE 39 | . 25 . 14 Terrain Rammed . | . . . . Walls Destroyed . | . . . . Machines Disabled . | . . . . Actions | -11 -10 -9 -9 --------- Run | Yrd Mat Mat Sto Total 4201 | 1480 706 871 1144 Wait 1656 | 1276 41 24 315 Move 2152 | 172 571 708 701 Hop . | . . . . Pick Up 40 | 10 11 11 8 Fast Attach 29 | 6 11 7 5 Attach 10 | 3 5 1 1 Detach 3 | . 3 . . Swap 33 | . 4 13 16 Drop 60 | . 14 24 22 Fire 209 | 13 46 79 71 Melee . | . . . . Ram . | . . . . Kick . | . . . . Crush 5 | . . 4 1 Escape Stasis . | . . . . Rewire 1 | . . . 1 Trap . | . . . . Miscellaneous 3 | . . . 3 Route ------- -11/Scrapyard -10/Materials (discovered 3 exits: *Mat x2 / Min) -9/Materials (discovered 2 exits: *Mat / *Sto) -9/Storage (discovered 1 exit: *Mat) History --------- Turn | Location | Event 648 | -11/Scrapyard | Discovered new exit (range 16) 1256 | -11/Scrapyard | Assembled infested the area 1408 | -11/Scrapyard | Lost 4 parts (1p1n2w) 1574 | -11/Scrapyard | Entered Materials 1575 | -10/Materials | Build established: Mutant 1978 | -10/Materials | Core integrity fell below 50% 2020 | -10/Materials | Core integrity fell below 20% 2045 | -10/Materials | Lost 3 parts (2n1w) 2066 | -10/Materials | Discovered new exit (range 16) 2342 | -10/Materials | Discovered new exit (range 16) 2407 | -10/Materials | Identified exit to Materials 2507 | -10/Materials | Identified exit to Mines 2529 | -10/Materials | Entered another Materials area 2529 | -9/Materials | Evolved 2 slots: Propulsion x1, Utility x1 2898 | -9/Materials | Build established: Scavenger-Mutant 3329 | -9/Materials | Discovered new exit (range 3) 3332 | -9/Materials | Identified exit to Materials 3676 | -9/Materials | Core integrity fell below 50% 3782 | -9/Materials | Discovered new exit (range 16) 3821 | -9/Materials | Identified exit to Storage 3966 | -9/Materials | Entered Storage 4716 | -9/Storage | Build established: Mutant 4860 | -9/Storage | Core integrity fell below 20% 5455 | -9/Storage | Garrison activated, responded to threat 5567 | -9/Storage | Garrison activated, responded to threat 5646 | -9/Storage | Discovered exit to Materials (range 16) 5662 | -9/Storage | Destroyed by Y-45 Defender with Heavy Assault Rifle Last Messages --------------- 05590_ Y-45 Defender destroyed. 05591_ Overheating: System interference. 05591_ Spread Laser temporarily disabled. 05599_ K-01 Serf collects debris. 05604_ System corrupted: Matter fused (-8). 05606_ K-01 Serf collects debris. 05613_ Overheating: Energy bleed (-45). 05615_ Imp. Ion Engine destroyed. 05631_ G9>AB,Q WJIIOLN3XO=/ |:#W 05646_ EXIT=FOUND: MATERIALS 05651_ Imp. Treads destroyed. 05651_ Critical hit (Burn: +37). 05657_ Triggered EMP Trap. 05657_ A bubble of electromagnetic force engulfs the area. 05657_ Adv. Beam Cannon destroyed. 05657_ EMP Trap short circuited. 05657_ A bubble of electromagnetic force engulfs the area. 05657_ R-06 Scavenger destroyed. Map ----- +----------------------------------------------------+ | | | | | | | | | | | | | | | | | ????????????????????????????????????????? | | ????????????????????????????????????????? | | ????????????????????????????????????????? | | ????????????????????????????????????????? | | ????????????????????????????????????????? | | ????????????????????????????????????????? | | ????????????????????????????????????????? | | ????????????????????????????????????????? | | ????????????????????????????????????????? | | ????????????????????????#####???????????? | | ????????????????????????# #???????????? | | ????????????????????????# < #???????????? | | ????????????????????????# #???????????? | | ????????????????????????# #???????????? | | ????????????????????????# #???????????? | | ????????????????????????+ #???????????? | | ????????????????????????#%! #???????????? | | ????????????????????????#@ #???????????? | | ????????????????????????# #???????????? | | ????????????????????????# #???????????? | | ????????????????????????# #???????????? | | ????????????????????????# #???????????? | | ????????????????????"" ?# #???????????? | | ???????????????????""" ?# #???????????? | | ???????????????????"""??# #???????????? | | #?????????????????? ???#r #???????????? | | #T############+##### #???????????? | | #???????????? | | #???????????? | | % #???????????? | | ??????#########% ########Y#####????????? | | ???????######## #???# % #????????? | | ???????# # #???# !!!#????????? | | ???????# # #???# !! #????????? | | ???????# # #???# % !! #????????? | | ???????# # #???# #????????? | | ???????# !# ##### #????????? | | ???????# [%# / #????????? | | ???????# +% # #????????? | | ???##### # # #????????? | | ???# # ## ######## #????????? | | #### # ## ##############????? | +----------------------------------------------------+ Best States ------------- Heat Dissipation 28 Energy Generation 12 Energy Capacity 265 Matter Stores 300 Matter Capacity 300 Sight Range 16 Terrain Scan Density 10 Armor Coverage 225 Evasion (%) 55 Recoil Reduction 3 Item Schematics ----------------- Hrd. Light Armor Plating | -9/Materials | Hacked Hover Unit | -9/Materials | Hacked Robot Schematics ------------------ None Fabricated ------------ Nothing Alien Tech Used ----------------- None Achievements -------------- Close Call Curiosity Killed The Cat Hey, That's Mine! Release The Drones! Troublemaker root@ Challenges ------------ None Game ------ Seed DynamicArmorShield Manual? 0 Play Time 00:59:30 Cumulative 10.2 hours Start 2024.04.04 @ 19:54:25 End 2024.04.04 @ 20:55:06 Sessions 1 Manual Loads 0 Difficulty Rogue Special Mode None Game No. 9 Rogue 9 Adventurer 0 Explorer 0 Win Type - Total 0 Types 0/0/0/0/0/0/0/0/0 Lore% 15 Gallery% 12 Achievement% 14 Wizard Run 0 Options --------- Layout 1 ASCII 0 Keyboard 1 Movement Vi Keybinds 0 Fullscreen 1 Font 24/Smallcaps Map View 50x35 Zoom Use 0% Tactical HUD 1 Map Filters NONE Filters NONE Steam 1 RUN: 8fc3a03d-75a0-4612-a9ef-8042cc3ba67a